Cogmind - Beta 14 @@@ ROGUE MODE // 2025.03.06 @ 20:53:01 Player: w0rldd3str0y3r Result: Core destroyed Performance ------------- Evolutions (5) 2500 Regions Visited (12) 2400 Robots Destroyed (194) 970 Value Destroyed (8024) 8024 Prototype IDs (34) 680 Alien Tech Used (0) 0 Bonus (3898) 3898 TOTAL SCORE: 18472 Bonus ------- High Alert Combat Kills 1117 Follower Combat Kills 1484 Entered Garrisons 400 Used RIF Installer 1000 Aligned with FarCom 300 Friendly Fire -403 Cogmind --------- Core Integrity 0/1000 Matter 290/300 Energy 272/310 System Corruption 9% Temperature Critical (523) Movement Walking (190) Ox1 Location -5/Extension Parts ------- > --- POWER (1) -------- Fission Core > --- PROPULSION (3) --- Carbon-fiber Leg Carbon-fiber Leg Flexi-carbon Leg > --- UTILITY (9) ------ Advanced Heat Sink Structural Scanner Advanced Terrain Scan Processor Energy Filter Improved Weapon Cycler Improved Medium Armor Plating Advanced Hacking Suite Field Recycling Unit > --- WEAPON (4) ------- Beamcaster Heavy Assault Rifle Gauss Rifle KE Penetrator > --- INVENTORY (5) ---- Light Angular Momentum Engine Disruptor Cannon Phasing Sabre Phasing Sabre Peak State ------------ > --- POWER ------------ Fission Core > --- PROPULSION ------- Carbon-fiber Leg Carbon-fiber Leg Carbon-fiber Leg > --- UTILITY ---------- Advanced Heat Sink Large Storage Unit Machine Analyzer Advanced Terrain Scan Processor Improved Weapon Cycler Improved Medium Armor Plating Improved Medium Armor Plating Force Field Advanced Hacking Suite > --- WEAPON ----------- Beamcaster Beamcaster KE Penetrator Phasing Sabre > --- INVENTORY -------- Light Angular Momentum Engine Light Angular Momentum Engine Fission Core Carbon-fiber Leg Carbon-fiber Leg Power Amplifier Advanced Heat Sink Terrain Scanner Terrain Scan Processor Energy Filter Improved Medium Armor Plating Heavy Laser Disruptor Cannon Bore Cannon Phasing Sabre [Rating: 80] Favorites ----------- Power Fission Core Engine Improved Deuterium Engine Power Core Fission Core Propulsion Compact Wheel Treads Light Treads Leg Carbon-fiber Leg Wheel Compact Wheel Hover Unit Gyrokinetic Inverter Flight Unit VTOL Module Utility Huge Storage Unit Device Advanced Heat Sink Storage Huge Storage Unit Processor Machine Analyzer Hackware Hacking Suite Protection Improved Medium Armor Plating Weapon Power Maul Energy Gun Lightning Gun Energy Cannon EM Pulse Cannon Ballistic Gun Flak Gun Ballistic Cannon Enhanced Gauss Cannon Launcher Heavy Missile Launcher Special Weapon Remote Datajack Impact Weapon Power Maul Slashing Weapon Axe Special Melee Weapon Improved Datajack Build | -11 -10 -10 -10 -9 -8 -8 -8 -7 -6 -6 -5 -5 ------- Run | Yrd Mat Min Exi Min Mat Gar Mat Fac Fac Gar Fac Ext Slots Evolved 10 | . . . . . 4 . . 2 2 . 2 . Power . | . . . . . . . . . . . . . Propulsion 1 | . . . . . 1 . . . . . . . Utility 7 | . . . . . 2 . . 1 2 . 2 . Weapon 2 | . . . . . 1 . . 1 . . . . Parts Attached 292 | 7 11 3 1 3 24 27 34 58 31 19 26 48 Power 20 | 1 1 . . . 4 1 2 4 2 . 2 3 Engine 9 | 1 1 . . . 1 . 1 4 . . 1 . Core 11 | . . . . . 3 1 1 . 2 . 1 3 Reactor . | . . . . . . . . . . . . . Propulsion 67 | 2 1 . . 1 4 9 14 15 4 3 3 11 Treads 28 | 1 . . . . 2 9 6 6 . 1 2 1 Leg 10 | . . . . . . . 1 . . . . 9 Wheel 26 | 1 1 . . 1 2 . 7 9 3 1 1 . Hover 2 | . . . . . . . . . 1 . . 1 Flight 1 | . . . . . . . . . . 1 . . Utility 86 | 2 2 . . . 7 9 8 13 10 5 8 22 Device 30 | 1 . . . . 1 2 6 6 3 . 1 10 Storage 5 | 1 2 . . . 1 . . . . . . 1 Processor 11 | . . . . . 1 2 1 1 2 1 . 3 Hackware 17 | . . . . . 1 2 . 2 3 3 5 1 Protection 23 | . . . . . 3 3 1 4 2 1 2 7 Artifact . | . . . . . . . . . . . . . Weapon 119 | 2 7 3 1 2 9 8 10 26 15 11 13 12 Energy Gun 25 | . . . 1 . . . 3 12 4 2 . 3 Energy Cannon 11 | . . . . . 1 1 2 3 1 1 2 . Ballistic Gun 20 | 2 4 2 . 1 4 . . 1 . . . 6 Ballistic Cannon 17 | . . . . . 2 5 1 2 2 3 1 1 Launcher 18 | . 3 1 . . 2 1 3 2 . . 6 . Special Weapon 14 | . . . . . . . . . 5 5 4 . Impact Weapon 4 | . . . . 1 . . 1 1 1 . . . Slashing Weapon 9 | . . . . . . . . 5 2 . . 2 Piercing Weapon . | . . . . . . . . . . . . . Special Melee Weapon 1 | . . . . . . 1 . . . . . . Unidentified Prototypes 4 | . . . . . 2 . . 1 1 . . . Corrupted Parts 3 | . . . . . . . 2 . . . 1 . System Corruption 17 | . . . . . . . 8 . . . 9 . Parts Lost 63 | . . . . 1 . 16 13 11 2 . 9 11 Power 8 | . . . . 1 . 2 1 1 1 . 2 . Propulsion 19 | . . . . . . 4 6 4 . . 3 2 Utility 20 | . . . . . . 5 4 2 1 . 1 7 Weapon 16 | . . . . . . 5 2 4 . . 3 2 Highest Loss Streak 7 | . . . . 1 . 6 6 5 1 . 4 7 To Critical Strikes 1 | . . . . . . . . . . . . 1 Average Slot Usage (%) 92 | . 100 100 100 90 89 91 83 97 99 99 93 72 Engine 2 | . 14 14 14 14 1 . 2 7 . . 1 . Core 3 | . . . . . 7 4 2 . 5 6 2 4 Treads 6 | . 14 14 14 5 5 21 9 1 . 5 7 . Leg 1 | . . . . . . . . . . . . 13 Wheel 12 | . 14 14 14 14 12 2 8 21 19 13 5 . Device 8 | . 14 14 14 14 9 2 19 10 5 6 3 7 Storage 7 | . 14 14 14 14 9 9 9 7 6 6 4 3 Processor 5 | . . . . . 4 5 . 2 7 9 4 9 Hackware 10 | . . . . . 3 9 . 8 17 16 30 3 Protection 6 | . . . . . 9 8 3 6 6 6 3 7 Energy Gun 5 | . . . 6 7 . . 4 15 7 5 1 4 Energy Cannon 1 | . . . . . . 4 1 2 2 2 2 . Ballistic Gun 4 | . 27 28 21 12 8 . . 2 . . . 9 Ballistic Cannon 5 | . . . . . 8 11 11 1 5 4 4 . Special Weapon 1 | . . . . . . . . . 2 5 2 . Impact Weapon 4 | . . . . 7 9 9 8 . 4 6 4 . Slashing Weapon 1 | . . . . . . . . 5 1 . . 3 Peak Build Rating 80 | 7 9 8 9 21 35 37 40 52 59 60 71 80 Average Rating 44 | 5 8 7 8 14 33 32 37 47 56 57 64 53 On Entrance 24 | . 7 8 8 9 20 35 34 37 49 50 60 2 Naked Turns 23 | . . . . . . . . . . . 23 . Heaviest Build 130 | 15 30 30 30 33 106 109 111 122 124 123 130 76 Greatest Support 60 | 10 10 20 10 28 38 60 60 42 48 44 50 50 Greatest Overweight (x) 39 | 1 2 2 2 2 3 3 10 3 3 39 11 2 Average Overweight (x) 2 | . 1 1 2 1 1 1 3 2 2 3 4 . Largest Inventory Capacity 25 | 8 15 15 15 15 25 25 25 25 25 25 25 15 Average Capacity 22 | 7 14 15 15 15 19 25 25 25 25 25 24 11 Most Carried 25 | 8 15 15 15 15 25 25 25 25 25 25 25 15 Average Carried 20 | 4 13 14 14 15 18 22 21 24 24 24 21 9 Final Capacity 25 | 8 15 15 15 15 25 25 25 25 25 25 5 5 Final Carried 25 | 7 15 15 15 15 24 25 24 25 24 24 5 4 Class Distribution -------------------- 30% | Mutant 18% | Scavenger-Skirmisher 13% | Hacker-Tank 7% | Scavenger-Mutant 6% | Assassin 5% | Skirmisher 5% | Bothacker-Tank 4% | Scavenger-Assassin 3% | Scavenger-Tank 3% | Commander-Tank Dominant Class ---------------- Mutant | -10/Materials Mutant | -10/Mines Mutant | -10/Exiles Mutant | -9/Mines Assassin | -8/Materials Mutant | -8/Garrison Mutant | -8/Materials Skirmisher | -7/Factory Scavenger-Skirmisher | -6/Factory Bothacker-Tank | -6/Garrison Hacker-Tank | -5/Factory Scavenger-Tank | -5/Extension Resources | -11 -10 -10 -10 -9 -8 -8 -8 -7 -6 -6 -5 -5 ----------- Run | Yrd Mat Min Exi Min Mat Gar Mat Fac Fac Gar Fac Ext Matter Collected 6109 | 290 187 248 . . 635 567 746 531 936 300 483 1186 Remotely . | . . . . . . . . . . . . . Salvage Created 7268 | 65 253 126 . . 850 578 1161 1072 777 379 763 1244 Parts 362 | 7 23 8 . . 53 34 57 63 25 15 35 42 Haulers Intercepted 5 | . 1 . . . 3 . 1 . . . . . Recyclers Shooed 8 | 1 . . . . . . 2 1 3 . . 1 Parts Field Recycled . | . . . . . . . . . . . . . Retrieved Matter . | . . . . . . . . . . . . . Parts Self-Destructed . | . . . . . . . . . . . . . Prevented . | . . . . . . . . . . . . . Kills | -11 -10 -10 -10 -9 -8 -8 -8 -7 -6 -6 -5 -5 ------- Run | Yrd Mat Min Exi Min Mat Gar Mat Fac Fac Gar Fac Ext Combat Hostiles Destroyed 120 | . 9 5 . . 14 22 17 15 12 1 14 11 Melee 4 | . . . . . . 4 . . . . . . Guns 33 | . 3 2 . . 5 . 4 4 3 1 . 11 Cannons 42 | . . . . . 8 11 5 4 8 . 6 . AOE 38 | . 6 3 . . 1 4 8 7 1 . 8 . Classes Destroyed 18 | 1 5 . . . 2 2 2 2 . 1 2 1 Worker 6 | . . . . . . . 1 2 . . 3 . Builder 25 | . . . . . . . 8 6 3 . 5 3 Tunneler 6 | 3 1 . . . . . . 1 . . . 1 Hauler 5 | . 1 . . . 3 . 1 . . . . . Recycler 11 | . . . . . 3 . 1 3 1 . . 3 Mechanic 1 | . . . . . . . . 1 . . . . Operator 8 | . 2 . . . 4 . . 1 1 . . . Watcher 11 | . 2 . . . 4 . 1 1 1 . 1 1 Swarmer 25 | . 7 3 . . 4 7 . 3 . . 1 . Saboteur 1 | . . . . . . . . . . . . 1 Grunt 56 | . 2 2 . . 5 7 13 4 8 . 8 7 Brawler 2 | . . . . . . . . 1 . . . 1 Duelist 1 | . . . . . . . . . . . 1 . Protector 2 | . . . . . . . . . . . 2 . Sentry 18 | . . . . . 5 3 4 3 1 . 2 . Hunter 6 | . . . . . . 2 . 1 . 1 . 2 Programmer 9 | . . . . . . 3 . 3 3 . . . Infiltrator 1 | . . . . . . . . . . 1 . . Best Kill Streak 10 | 3 5 3 . . 4 5 6 10 3 1 7 6 Combat Bots Only 6 | . 4 3 . . 4 5 6 5 2 1 4 4 Max Kills in Single Turn 5 | 2 2 3 . . 2 3 3 5 1 1 3 2 Gunslinging . | . . . . . . . . . . . . . Exploded 3 | . 2 3 . . 1 3 2 2 1 . 2 . Melee 1 | . . . . . . 1 . . . . . . Uniques/NPCs Destroyed . | . . . . . . . . . . . . . Combat | -11 -10 -10 -10 -9 -8 -8 -8 -7 -6 -6 -5 -5 -------- Run | Yrd Mat Min Exi Min Mat Gar Mat Fac Fac Gar Fac Ext Hostile Shots Fired 988 | . 25 10 . 2 61 187 125 112 137 11 137 181 Missed 297 | . 7 2 . 1 21 35 39 39 48 3 48 54 Damage Taken 12017 | 4 220 146 . 199 512 2436 1377 1159 1143 118 2051 2652 Core 2086 | . 49 26 . 46 33 327 164 162 147 37 588 507 Absorbed by Shields 367 | . . . . . . . . . 52 28 180 107 Regen/Repaired (Parts) 217 | . . . . . 95 . . 122 . . . . Core Remaining (%) 61 | 100 . . . 51 . . 4 76 . 78 . . Volleys Fired 418 | 5 28 7 . . 35 43 62 46 55 32 54 51 Largest 4 | 2 2 2 . . 2 2 2 4 3 3 3 4 Hottest 290 | 40 50 50 . . 72 104 171 290 222 171 206 276 Shots Fired 768 | 10 53 14 . . 65 73 83 93 119 41 71 146 Gun 396 | 10 49 13 . . 30 3 28 56 59 7 6 135 Cannon 291 | . . . . . 31 67 41 34 56 15 36 11 Launcher 49 | . 4 1 . . 4 3 14 3 . . 20 . Special 32 | . . . . . . . . . 4 19 9 . Kinetic 387 | 10 49 13 . . 60 46 18 28 40 9 23 91 Thermal 199 | . . . . . 1 24 51 27 28 . 13 55 Explosive 32 | . 4 1 . . 4 3 7 . . . 13 . Electromagnetic 118 | . . . . . . . 7 38 47 13 13 . Robot Hit Streak 12 | 7 5 4 . . 9 7 11 10 5 12 8 7 Robot Miss Streak 11 | 1 4 3 . . 11 9 4 6 5 3 2 9 Penetration Max 1 | . . . . . . . . . . . . 1 Secondary Targets 5 | . 1 . . . . . . . . . . 4 Max Gunslinging Chain 1 | . 1 . . . . . . . . . . 1 Shots Hit Robots 531 | 8 25 8 . . 63 70 48 62 76 44 46 81 Core Hits 355 | 4 21 9 . . 71 29 38 52 29 9 49 44 Critical Kills 7 | . . . . . 3 1 . . . 1 1 1 Critical Parts Destroyed 14 | . . . . . 1 6 . . 1 5 . 1 Critical Strikes 40 | . . . . . 4 10 1 4 5 6 3 7 Burn 5 | . . . . . . . . . 1 . . 4 Meltdown 2 | . . . . . . 1 . . . . 1 . Destroy 2 | . . . . . . . . . . . . 2 Blast 11 | . . . . . . 3 1 4 2 . 1 . Corrupt 2 | . . . . . . . . . 1 . 1 . Smash 17 | . . . . . 4 6 . . 1 6 . . Sever 1 | . . . . . . . . . . . . 1 Melee Attacks 267 | . . . . . 30 45 11 73 62 27 5 14 Impact 175 | . . . . . 30 44 11 6 52 27 5 . Slashing 91 | . . . . . . . . 67 10 . . 14 Piercing . | . . . . . . . . . . . . . Sneak Attacks 23 | . . . . . 5 . 2 7 6 1 . 2 Combat Hostiles . | . . . . . . . . . . . . . Follow-up Attacks . | . . . . . . . . . . . . . Damage Inflicted 20165 | 113 704 197 . . 1905 2294 2798 2806 2625 1535 2959 2229 Guns 4421 | 105 327 91 . . 430 33 431 736 563 45 75 1585 Cannons 5272 | . . . . . 403 883 843 777 1243 255 846 22 Explosions 5305 | . 375 104 . . 282 241 1347 740 178 . 2038 . Melee 5141 | . . . . . 790 1137 177 539 641 1235 . 622 Ramming 26 | 8 2 2 . . . . . 14 . . . . Kinetic 5283 | 105 327 91 . . 833 555 217 616 899 191 586 863 Thermal 4176 | . . . . . . 361 1201 769 556 . 545 744 Explosive 2809 | . 375 104 . . 282 241 578 197 . . 1032 . Electromagnetic 2730 | . . . . . . . 625 671 529 109 796 . Impact 3905 | . . . . . 790 1137 177 . 566 1235 . . Slashing 1236 | . . . . . . . . 539 75 . . 622 Piercing . | . . . . . . . . . . . . . Highest Corruption 21 | . . . . . 1 13 21 9 2 2 12 12 Average Corruption 5 | . . . . . 1 11 16 5 1 2 7 9 Corruption Purged 3 | . . . . . . . . . . . . 3 Corruption Blocked . | . . . . . . . . . . . . . Effects 300 | . . . . . 16 69 69 49 25 16 3 53 Message Errors 65 | . . . . . 2 13 16 10 5 4 . 15 Matter Fused 75 | . . . . . 3 17 20 12 8 3 . 12 Heat Flow Errors 39 | . . . . . 2 6 10 6 6 1 2 6 Energy Discharges 34 | . . . . . 3 9 7 6 1 1 . 7 Parts Rejected 2 | . . . . . . . 1 1 . . . . Parts Fused 4 | . . . . . 1 . . 1 . 1 . 1 Data Loss (minor) 35 | . . . . . 3 8 3 9 4 1 . 7 Data Loss (major) 16 | . . . . . 2 5 1 2 1 2 1 2 Misfires 6 | . . . . . . 3 . 1 . 2 . . Alerts 8 | . . . . . . 5 2 . . 1 . . Misdirections 2 | . . . . . . . 1 . . . . 1 Weapon Failures 14 | . . . . . . 3 8 1 . . . 2 Overload Shots . | . . . . . . . . . . . . . Overflow Damage 2119 | . 28 . . . 134 447 148 64 439 607 159 93 Projectiles 190 | . . . . . . 5 31 31 44 66 13 . Explosions 231 | . 28 . . . 1 28 . 8 20 . 146 . Melee 1698 | . . . . . 133 414 117 25 375 541 . 93 Knockbacks 50 | . . . . . 8 10 5 2 14 6 5 . Impact 8 | . . . . . . 2 1 . 4 1 . . Kinetic 39 | . . . . . 8 8 2 2 9 5 5 . Secondary 3 | . . . . . . . 2 . 1 . . . Self-Inflicted Damage 690 | 4 20 40 . . . 87 35 145 . . 359 . Shots 19 | . 1 1 . . . 1 2 4 . . 10 . Rammed 4 | 1 1 1 . . . . . 1 . . . . Targets Rammed 5 | 1 1 1 . . . . . 1 . . . 1 Kicked 1 | . . . . . . . . . . . . 1 Crushed . | . . . . . . . . . . . . . Highest Temperature 754 | 6 . 2 . . 316 346 371 546 465 216 209 754 Average Temperature 116 | 6 . 2 . . 57 95 104 150 129 63 57 202 Received Heat Transfer 2425 | . 60 57 . 12 144 333 684 144 369 . 233 389 Effects 35 | . . . . . 3 . 1 4 5 . . 22 Shutdowns 8 | . . . . . . . . 2 1 . . 5 Energy Bleed 4 | . . . . . . . . 1 2 . . 1 Interference 8 | . . . . . 3 . . . 2 . . 3 Matter Decay 2 | . . . . . . . . . . . . 2 Short Circuit 7 | . . . . . . . 1 . . . . 6 Damage (minor) 3 | . . . . . . . . 1 . . . 2 Damage (major) 1 | . . . . . . . . . . . . 1 Damage (core) 2 | . . . . . . . . . . . . 2 Siege Activations . | . . . . . . . . . . . . . Robots Corrupted 13 | . . . . . 4 2 2 . 2 3 . . Combat Hostiles 4 | . . . . . . 2 . . . 2 . . Parts Fried 40 | . . . . . 12 2 6 2 9 7 2 . Impact Corruptions 40 | . . . . . 5 15 5 . 7 8 . . Robots Melted 2 | . . . . . . 1 . . . . 1 . Combat Hostiles 1 | . . . . . . 1 . . . . . . Parts Melted 12 | . . . . . . 3 1 . 1 . 3 4 Heat Transferred 6448 | . . . . . . 555 1582 833 1050 . 800 1628 Parts Sabotaged . | . . . . . . . . . . . . . Parts Stolen . | . . . . . . . . . . . . . Parts Stripped . | . . . . . . . . . . . . . Power Chain Reactions 14 | . . . . . . . 2 5 2 . 5 . Alert | -11 -10 -10 -10 -9 -8 -8 -8 -7 -6 -6 -5 -5 ------- Run | Yrd Mat Min Exi Min Mat Gar Mat Fac Fac Gar Fac Ext Peak Influence 1583 | 15 230 205 . 15 197 970 649 405 385 1342 1583 848 Initial 760 | . 9 47 . . 1 119 472 274 145 150 704 760 Average 382 | 4 79 149 . . 95 569 499 170 119 708 1237 754 Maximum Alert Level 4 | . 1 1 . . . 3 2 2 1 4 4 3 Low Security (%) 46 | 100 91 58 . 100 100 3 . 49 89 1 . . Level 1 16 | . 8 41 . . . 26 16 49 10 18 . . Level 2 16 | . . . . . . 35 83 . . 36 . 17 Level 3 14 | . . . . . . 34 . . . 23 25 82 Level 4 6 | . . . . . . . . . . 19 75 . Level 5 . | . . . . . . . . . . . . . High Security . | . . . . . . . . . . . . . Max Security . | . . . . . . . . . . . . . Squads Dispatched 50 | . 2 . . . 4 . 5 8 14 . 12 5 Investigation 15 | . . . . . 1 . 2 2 5 . 2 3 Extermination 9 | . . . . . . . . 3 5 . 1 . Reinforcement 16 | . 2 . . . 3 . 3 3 3 . 2 . Assault 6 | . . . . . . . . . . . 4 2 Garrison 4 | . . . . . . . . . 1 . 3 . Intercept . | . . . . . . . . . . . . . Searches Triggered . | . . . . . . . . . . . . . Construction Impeded 5 | . . . . . . . 2 2 . . 1 . Haulers Reinforced 1 | . . . . . . . . . 1 . . . Active Scanning Responses . | . . . . . . . . . . . . . Cargo Convoy Interrupts 1 | . . . . . . . . . . . 1 . Stealth | -11 -10 -10 -10 -9 -8 -8 -8 -7 -6 -6 -5 -5 --------- Run | Yrd Mat Min Exi Min Mat Gar Mat Fac Fac Gar Fac Ext Distress Signals 13 | . 4 . . . 1 . 2 2 2 . 1 1 Communications Jammed . | . . . . . . . . . . . . . Distress Signals . | . . . . . . . . . . . . . Times Spotted 222 | . 18 5 . 2 25 17 22 21 35 2 46 29 Peak Tracking Total 6 | . 4 3 . 2 4 3 6 6 4 2 5 5 Tactical Retreats 12 | . . . . . 3 1 1 2 2 1 1 1 Traps | -11 -10 -10 -10 -9 -8 -8 -8 -7 -6 -6 -5 -5 ------- Run | Yrd Mat Min Exi Min Mat Gar Mat Fac Fac Gar Fac Ext Traps Triggered 17 | . 1 . . . 1 4 1 5 3 1 1 . Indirectly . | . . . . . . . . . . . . . Trap Hack Attempts . | . . . . . . . . . . . . . Triggered . | . . . . . . . . . . . . . Disarmed . | . . . . . . . . . . . . . Reprogrammed . | . . . . . . . . . . . . . Reused . | . . . . . . . . . . . . . Traps Extracted . | . . . . . . . . . . . . . Installed . | . . . . . . . . . . . . . Triggered 4 | . . . . . . . . 2 . . 2 . Machines | -11 -10 -10 -10 -9 -8 -8 -8 -7 -6 -6 -5 -5 ---------- Run | Yrd Mat Min Exi Min Mat Gar Mat Fac Fac Gar Fac Ext Machines Disabled 35 | . 1 1 . . 1 8 2 3 2 6 11 . Max in Single Turn 2 | . 1 1 . . 1 2 1 1 1 1 2 . Garrison Access 4 | . . . . . . . . 2 1 . 1 . Garrison Relay 9 | . . . . . . 3 . . . 6 . . Phase Generator 1 | . . . . . . 1 . . . . . . Machines Repaired . | . . . . . . . . . . . . . Machines Dismantled . | . . . . . . . . . . . . . Machines Sabotaged . | . . . . . . . . . . . . . Overloaded Fab Kills . | . . . . . . . . . . . . . Hacking | -11 -10 -10 -10 -9 -8 -8 -8 -7 -6 -6 -5 -5 --------- Run | Yrd Mat Min Exi Min Mat Gar Mat Fac Fac Gar Fac Ext Machines Accessed 61 | . 2 . 3 1 9 3 4 11 11 5 8 4 Terminals 34 | . 1 . . . 6 3 3 2 6 5 4 4 Fabricators 8 | . . . . . . . . 3 2 . 3 . Repair Stations 3 | . 1 . . . 1 . . 1 . . . . Recycling Units 2 | . . . . . . . . 1 1 . . . Scanalyzers 5 | . . . . . 1 . 1 2 . . 1 . Garrison Access 5 | . . . . . 1 . . 2 2 . . . Total Hacks 150 | . 2 . 3 1 28 4 11 25 29 11 23 13 Successful 74 | . 2 . 3 1 12 3 8 14 12 5 11 3 Failed 76 | . . . . . 16 1 3 11 17 6 12 10 Catastrophic 13 | . . . . . 2 . 1 2 3 . 3 2 Database Lockouts . | . . . . . . . . . . . . . Manual 36 | . 1 . 1 . 5 . 1 4 9 . 12 3 Terminals 93 | . 1 . . . 20 4 9 5 20 11 10 13 Fabricators 21 | . . . . . . . . 5 5 . 11 . Repair Stations 5 | . 1 . . . 2 . . 2 . . . . Recycling Units 2 | . . . . . . . . 1 1 . . . Scanalyzers 15 | . . . . . 2 . 2 9 . . 2 . Garrison Access 10 | . . . . . 4 . . 3 3 . . . Terminal Hacks 35 | . 1 . 3 1 7 3 6 . 5 5 1 3 Record 3 | . . . 2 . . . . . . . . 1 Part Schematic 1 | . . . . . . . . . 1 . . . Robot Schematic 1 | . . . . . . . . . 1 . . . Prototype ID Bank 3 | . . . . . 2 . 1 . . . . . Open Door 3 | . . . . 1 . . . . . 1 1 . Branch Access Points 1 | . . . . . . . 1 . . . . . Emergency Access Points 2 | . . . . . . 1 . . . 1 . . Alert Level 2 | . . . . . 1 . 1 . . . . . Maintenance Status 1 | . . . . . . . 1 . . . . . Patrol Status 1 | . . . . . . . . . . . . 1 Recall Investigation 1 | . . . . . . . . . 1 . . . Hauler Manifests 1 | . . . . . 1 . . . . . . . Zone Layout 9 | . 1 . . . 3 . 2 . 2 . . 1 Garrison Registry 2 | . . . . . . 1 . . . 1 . . Patrol Navigation 2 | . . . . . . 1 . . . 1 . . Security Stations 1 | . . . . . . . . . . 1 . . Derelict Proto ID Bank 1 | . . . 1 . . . . . . . . . Fabricator Hacks 8 | . . . . . . . . . 3 . 5 . Network Status 4 | . . . . . . . . . 1 . 3 . Load Schematic 2 | . . . . . . . . . 1 . 1 . Build 2 | . . . . . . . . . 1 . 1 . Repair Station Hacks 5 | . 1 . . . 2 . . 2 . . . . Scan Component 2 | . . . . . 1 . . 1 . . . . Repair 2 | . . . . . 1 . . 1 . . . . Refit 1 | . 1 . . . . . . . . . . . Recycling Unit Hacks 1 | . . . . . . . . . 1 . . . Report Inventory 1 | . . . . . . . . . 1 . . . Scanalyzer 14 | . . . . . 1 . 2 9 . . 2 . Insert Component 7 | . . . . . 1 . 1 4 . . 1 . Analyze 7 | . . . . . . . 1 5 . . 1 . Garrison Access Hacks 7 | . . . . . 1 . . 3 3 . . . Unlock Access 2 | . . . . . 1 . . . 1 . . . Seal Access 3 | . . . . . . . . 2 1 . . . Coupler Status 2 | . . . . . . . . 1 1 . . . Unauthorized Hacks 4 | . . . . . 1 . . . . . 3 . Terminals 2 | . . . . . 1 . . . . . 1 . Assimilate 2 | . . . . . 1 . . . . . 1 . Fabricators 2 | . . . . . . . . . . . 2 . Fabnet 2 | . . . . . . . . . . . 2 . Repair Stations . | . . . . . . . . . . . . . Recycling Units . | . . . . . . . . . . . . . Scanalyzers . | . . . . . . . . . . . . . Garrison Access . | . . . . . . . . . . . . . Data Cores Recovered 1 | . . . . . . . . 1 . . . . Used 1 | . . . . . . . . 1 . . . . Hacking Detections 43 | . 1 . . . 7 3 3 7 8 4 6 4 Full Trace Events 13 | . . . . . 1 . 2 2 4 . 2 2 Feedback Events 5 | . . . . . 1 . 1 2 1 . . . Corruption 4 | . . . . . 1 . . 2 1 . . . Hackware Fried 1 | . . . . . . . 1 . . . . . Feedback Blocked . | . . . . . . . . . . . . . Robot Schematics Acquired 1 | . . . . . . . . . 1 . . . Robots Built 3 | . . . . . . . . . 3 . . . Authchips . | . . . . . . . . . . . . . Time 201 | . . . . . . . . . 134 . 67 . Total Robot Build Rating 12 | . . . . . . . . . 12 . . . Part Schematics Acquired 6 | . . . . . . . 1 3 1 . 1 . Parts Built . | . . . . . . . . . . . . . Authchips . | . . . . . . . . . . . . . Time . | . . . . . . . . . . . . . Total Part Build Rating . | . . . . . . . . . . . . . Parts Repaired 2 | . . . . . 1 . . 1 . . . . Time 88 | . . . . . 44 . . 44 . . . . Parts Recycled . | . . . . . . . . . . . . . Recycled Matter . | . . . . . . . . . . . . . Retrieved Matter . | . . . . . . . . . . . . . Retrieved Components . | . . . . . . . . . . . . . Parts Scanalyzed 7 | . . . . . 1 . 1 4 . . 1 . Part Schematics Acquired 5 | . . . . . . . 1 3 . . 1 . Parts Damaged 2 | . . . . . 1 . . 1 . . . . Bothacking | -11 -10 -10 -10 -9 -8 -8 -8 -7 -6 -6 -5 -5 ------------ Run | Yrd Mat Min Exi Min Mat Gar Mat Fac Fac Gar Fac Ext Used RIF Installer 2 | . . . . . . 1 . . . 1 . . Watcher Feeds 1 | . . . . . . . . . . 1 . . Robots Hacked 9 | . . . . . . . . . 4 . 5 . Non-combat 1 | . . . . . . . . . . . 1 . Combat 8 | . . . . . . . . . 4 . 4 . Robot Hacks Applied 9 | . . . . . . . . . 4 . 5 . parse_system 1 | . . . . . . . . . . . 1 . streamctrl_high 2 | . . . . . . . . . 1 . 1 . formatsys_high 6 | . . . . . . . . . 3 . 3 . Relay Couplers Released 43 | . . . . . . 13 . . . 30 . . Machine Destruction 40 | . . . . . . 13 . . . 27 . . Programmers 3 | . . . . . . . . . . 3 . . Attached 10 | . . . . . . 2 . . 2 2 4 . Fabnet Peak Effective % . | . . . . . . . . . . . . . Robots Rewired 18 | . . . . . . . . . . 8 . 10 Allies Hacked . | . . . . . . . . . . . . . Hacks Repelled . | . . . . . . . . . . . . . Allies | -11 -10 -10 -10 -9 -8 -8 -8 -7 -6 -6 -5 -5 -------- Run | Yrd Mat Min Exi Min Mat Gar Mat Fac Fac Gar Fac Ext Total Allies 33 | . . . . . . . . . 7 12 4 10 Largest Group 11 | . . . . . . . . . 4 11 10 8 Highest-Rated Group 437 | . . . . . . . . . 104 437 375 244 Highest-Rated Ally 95 | . . . . . . . . . 32 95 95 39 Total Orders 9 | . . . . . . . . . 7 . 2 . STAY 5 | . . . . . . . . . 4 . 1 . FOLLOW 4 | . . . . . . . . . 3 . 1 . Ally Attacks 238 | . . . . . . . . . 31 22 101 84 Total Damage 5978 | . . . . . . . . . 1083 414 2939 1542 Kills 49 | . . . . . . . . . 9 2 26 12 Allies Corrupted 4 | . . . . . . . . . . 1 2 1 Allies Melted . | . . . . . . . . . . . . . Intel | -11 -10 -10 -10 -9 -8 -8 -8 -7 -6 -6 -5 -5 ------- Run | Yrd Mat Min Exi Min Mat Gar Mat Fac Fac Gar Fac Ext Robot Analysis Total . | . . . . . . . . . . . . . Derelict Logs Recovered 1 | . . 1 . . . . . . . . . . Drone Launches . | . . . . . . . . . . . . . Drone Recoveries . | . . . . . . . . . . . . . Exploration | -11 -10 -10 -10 -9 -8 -8 -8 -7 -6 -6 -5 -5 ------------- Run | Yrd Mat Min Exi Min Mat Gar Mat Fac Fac Gar Fac Ext Turns Passed 17454 | 91 568 484 266 123 2234 1841 1541 2452 3758 1564 1136 1396 Spaces Moved 8856 | 64 350 338 237 102 1121 721 538 1362 2061 868 471 623 Core 50 | 3 . . . . . . . . . 1 46 . Treads 753 | . . 56 . . . 511 64 41 . . 81 . Legs 482 | . . . . . . . . . . . . 482 Wheels 7430 | 61 350 282 237 102 1121 210 474 1321 2061 867 344 . Hover 141 | . . . . . . . . . . . . 141 Flight . | . . . . . . . . . . . . . Fastest Speed 50 | 50 95 110 110 100 115 120 123 123 123 126 50 70 Average Speed 142 | 89 109 131 110 111 118 207 195 129 124 155 189 152 Slowest Speed 2000 | 95 110 240 110 115 145 320 560 320 145 2000 312 260 Overloaded Moves . | . . . . . . . . . . . . . Propulsion Burnouts . | . . . . . . . . . . . . . Robots Hopped . | . . . . . . . . . . . . . Cave-ins Triggered . | . . . . . . . . . . . . . Exploration Rate (%) 50 | 4 58 83 61 31 73 77 34 35 35 95 19 49 Regions Visited 12 Branch Regions 4 Pre-discovered Areas 2 | . . 1 1 . . . . . . . . . Known Exits Taken 2 | . . . . . 1 . . . 1 . . . Unknown Exits Taken 8 | 1 1 1 1 1 . . 1 1 . . 1 . Scrap Searched 2 | . . 2 . . . . . . . . . . Spaces Dug 151 | . . . . . 15 7 13 59 53 . 4 . Terrain Destroyed 502 | . 20 8 . . 47 85 68 117 74 . 77 6 Melee 146 | . . . . . 15 7 8 59 53 . 4 . Projectile 55 | . . . . . 1 . 17 12 16 . 3 6 AOE 301 | . 20 8 . . 31 78 43 46 5 . 70 . Terrain Rammed . | . . . . . . . . . . . . . Walls Destroyed . | . . . . . . . . . . . . . Machines Disabled . | . . . . . . . . . . . . . Actions | -11 -10 -10 -10 -9 -8 -8 -8 -7 -6 -6 -5 -5 --------- Run | Yrd Mat Min Exi Min Mat Gar Mat Fac Fac Gar Fac Ext Total 12480 | 84 485 361 243 112 1900 905 916 1860 3036 1004 629 945 Wait 2177 | . 60 10 . 2 641 25 243 242 762 24 62 106 Move 8843 | 63 349 337 236 101 1120 719 537 1361 2061 866 470 623 Hop . | . . . . . . . . . . . . . Pick Up 195 | 8 20 1 3 1 28 20 14 34 22 11 9 24 Fast Attach 91 | 6 . 1 . 3 8 5 10 12 12 7 1 26 Attach 102 | 1 1 . . . 4 16 17 21 13 5 12 12 Detach 41 | . 1 . . . . 4 7 9 6 5 2 7 Swap 99 | . 10 2 1 . 12 6 7 25 6 7 13 10 Drop 156 | . 15 2 3 5 22 10 8 28 29 14 1 19 Fire 418 | 5 28 7 . . 35 43 62 46 55 32 54 51 Melee 267 | . . . . . 30 45 11 73 62 27 5 14 Ram 2 | 1 . . . . . . . 1 . . . . Kick 1 | . . . . . . . . . . . . 1 Crush 2 | . 1 1 . . . . . . . . . . Escape Stasis 28 | . . . . . . 12 . 8 8 . . . Rewire 58 | . . . . . . . . . . 6 . 52 Trap . | . . . . . . . . . . . . . Miscellaneous . | . . . . . . . . . . . . . Route ------- -11/Scrapyard -10/Materials (discovered 3 exits: [*Mat x2] / [*Min]) -10/Mines (discovered 2 exits: [*Mat] / *Exi) -10/Exiles -9/Mines (discovered 2 exits: *Mat x2) -8/Materials (discovered 2 exits: *Fac / Gar) -8/Garrison (discovered 3 exits: *Mat x3) -8/Materials -7/Factory -6/Factory (discovered 3 exits: *Fac x2 / Gar) -6/Garrison (discovered 3 exits: *Fac x3) -5/Factory (discovered 2 exits: [*Upp] / *Ext) -5/Extension History --------- Turn | Location | Event 5 | -11/Scrapyard | Discovered new exit (range 14) 92 | -11/Scrapyard | Entered Materials 153 | -10/Materials | Discovered new exit (range 10) 303 | -10/Materials | Build established: Mutant 376 | -10/Materials | Discovered new exit (range 7) 428 | -10/Materials | Discovered new exit (range 5) 660 | -10/Materials | Entered Mines 904 | -10/Mines | Discovered new exit (range 9) 1078 | -10/Mines | Learned location of Storage (-9) 1130 | -10/Mines | Found a hidden stash of uninstalled traps 1138 | -10/Mines | Deemed a non-threat by the Exiles lab entrance 1139 | -10/Mines | Discovered new exit (range 5) 1144 | -10/Mines | Entered Exiles 1171 | -10/Exiles | Met 8R-AWN 1188 | -10/Exiles | Met EX-HEX 1234 | -10/Exiles | Met EX-BIN 1252 | -10/Exiles | Aligned with FarCom system 1253 | -10/Exiles | Given EX-Vault access code 1280 | -10/Exiles | Opened EX-Vault 1291 | -10/Exiles | Found Latent Energy Streamer 1326 | -10/Exiles | Warned to stay clear of 0b10 Research branches 1331 | -10/Exiles | Exiles lab attacked by MAIN.C 1366 | -10/Exiles | Learned location of Zion (-7) 1400 | -10/Exiles | Discovered new exit (range 10) 1410 | -10/Exiles | Left Exiles lab with Latent Energy Streamer 1410 | -10/Exiles | Entered Mines 1460 | -9/Mines | Met a Derelict who couldn't figure out how to use a Trap Extractor 1520 | -9/Mines | Assembled infested the area 1525 | -9/Mines | Assisted by a Guerilla fighting off Assembled 1525 | -9/Mines | Discovered new exit (range 9) 1531 | -9/Mines | Discovered new exit (range 13) 1533 | -9/Mines | Entered Materials 1533 | -8/Materials | Evolved 4 slots: Propulsion x1, Utility x2, Weapon x1 1915 | -8/Materials | Build established: Assassin 3088 | -8/Materials | Build established: Mutant 3119 | -8/Materials | Discovered new exit (range 16) 3680 | -8/Materials | Repaired Arm. Huge Wheel 3756 | -8/Materials | Identified exit to Garrison 3767 | -8/Materials | Entered Garrison 3795 | -8/Garrison | Triggered checkpoint 3921 | -8/Garrison | Phase Generator disabled 3952 | -8/Garrison | Lost 3 parts (2u1w) 4005 | -8/Garrison | System corruption reached 10% 4069 | -8/Garrison | Lost 5 parts (1p1n1u2w) 4312 | -8/Garrison | Triggered checkpoint 4321 | -8/Garrison | Triggered checkpoint 4491 | -8/Garrison | Discovered new exit (range 34) 4491 | -8/Garrison | Discovered new exit (range 51) 4491 | -8/Garrison | Discovered new exit (range 45) 4525 | -8/Garrison | Triggered checkpoint 4673 | -8/Garrison | Installed Relay Interface Framework 4847 | -8/Garrison | Garrison Relay disabled 4945 | -8/Garrison | Core integrity fell below 50% 4996 | -8/Garrison | Lost 6 parts (1p1n2u2w) 5188 | -8/Garrison | Build established: Scavenger-Mutant 5319 | -8/Garrison | Garrison Relay disabled 5481 | -8/Garrison | Garrison Relay disabled 5608 | -8/Garrison | Entered Materials 5624 | -8/Materials | Hacking Suite fried by hacking feedback 5892 | -8/Materials | Build established: Mutant 6312 | -8/Materials | Lost 6 parts (2n3u1w) 6501 | -8/Materials | Core integrity fell below 20% 6576 | -8/Materials | Lost 3 parts (2n1w) 7108 | -8/Materials | Discovered new exit (range 13) 7149 | -8/Materials | Entered Factory 7149 | -7/Factory | Evolved 2 slots: Utility x1, Weapon x1 7559 | -7/Factory | Repaired Power Maul 7973 | -7/Factory | Build established: Scavenger-Skirmisher 8313 | -7/Factory | Lost 3 parts (2u1w) 8847 | -7/Factory | Build established: Skirmisher 9220 | -7/Factory | Lost 5 parts (2n3w) 9506 | -7/Factory | Discovered new exit (range 11) 9601 | -7/Factory | Entered another Factory area 9601 | -6/Factory | Evolved 2 slots: Utility x2 9873 | -6/Factory | Discovered new exit (range 4) 10251 | -6/Factory | Build established: Scavenger-Skirmisher 11330 | -6/Factory | Fabricated B-48 Gladiator? 12189 | -6/Factory | Discovered new exit (range 16) 12254 | -6/Factory | Build established: Hacker-Tank 12360 | -6/Factory | Identified exit to Factory 13297 | -6/Factory | Garrison activated, responded to threat 13359 | -6/Factory | Identified exit to Garrison 13359 | -6/Factory | Entered Garrison 13359 | -6/Garrison | Discovered recently destroyed garrison 13448 | -6/Garrison | Garrison Relay disabled 13574 | -6/Garrison | P-70 Sage assimilated allied Slayer 5a 13676 | -6/Garrison | Garrison Relay disabled 13712 | -6/Garrison | Discovered exit to Factory (range 14) 13728 | -6/Garrison | Expanded RIF knowledge: Watcher Feeds 13766 | -6/Garrison | Discovered exit to Factory (range 55) 13766 | -6/Garrison | Discovered exit to Factory (range 73) 13766 | -6/Garrison | Discovered exit to Factory (range 15) 13951 | -6/Garrison | Garrison Relay disabled 13970 | -6/Garrison | Learned Factory security intel 13994 | -6/Garrison | Build established: Bothacker-Tank 14090 | -6/Garrison | Garrison Relay disabled 14110 | -6/Garrison | Rescued a captive Derelict 14122 | -6/Garrison | Rescued a captive Derelict 14279 | -6/Garrison | Found embedded Infiltrators 14321 | -6/Garrison | Garrison Relay disabled 14620 | -6/Garrison | Garrison Relay disabled 14894 | -6/Garrison | Build established: Commander-Tank 14923 | -6/Garrison | Entered Factory 14923 | -5/Factory | Accompanied by 10 allies 14923 | -5/Factory | Evolved 2 slots: Utility x2 15199 | -5/Factory | Garrison activated, responded to threat 15223 | -5/Factory | First assault squad dispatched 15294 | -5/Factory | Build established: Hacker-Tank 15362 | -5/Factory | Lost 5 allies 15388 | -5/Factory | Lost 4 parts (2n2w) 15717 | -5/Factory | Cargo convoy interrupted 15785 | -5/Factory | Discovered new exit (range 32) 15935 | -5/Factory | Build established: Hacker-Skirmisher 16009 | -5/Factory | System corruption reached 10% 16036 | -5/Factory | Released all parts (16) 16045 | -5/Factory | Core integrity fell below 50% 16057 | -5/Factory | Discovered new exit (range 6) 16059 | -5/Factory | Entered Extension 16959 | -5/Extension | First assault squad dispatched 16978 | -5/Extension | Build established: Scavenger-Tank 17134 | -5/Extension | Lost 3 allies 17259 | -5/Extension | Disrupted transfer network 17298 | -5/Extension | Lost 7 parts (2n4u1w) 17432 | -5/Extension | Lost 3 parts (2u1w) 17453 | -5/Extension | Core integrity fell below 20% 17456 | -5/Extension | Core destroyed Last Messages --------------- 17439_ Kicked G-50 Soldier. 17442_ Imp. Medium Armor Plating destroyed. 17444_ Slug penetrates G-50 Soldier. 17444_ G-50 Soldier destroyed. 17445_ Adv. Terrain Scan Processor broken. 17445_ Overheating: Short circuit. 17445_ Acquired 56 matter. 17447_ Slug penetrates G-50 Soldier. 17449_ Power failure, Fission Core shutdown. 17450_ Slug penetrates G-50 Soldier. 17450_ G-50 Soldier destroyed. 17451_ Carbon-fiber Leg broken. 17451_ Overheating: Short circuit. 17451_ Acquired 37 matter. 17452_ KE Penetrator broken. 17452_ Overheating: Short circuit. 17453_ Overheating: Core damaged (-150). 17454_ Acquired Adv. Heat Sink. 17455_ Power failure, Fission Core shutdown. 17456_ Overheating: Core damaged (-160). Map ----- +----------------------------------------------------+ | ##### + * + ! ]] #???# #??? | | + ####== * !# ! ]] #???# #??? | | ## #?## *! # ^ ##### #### | | ## ## #?#" # % | | ## ## #?###+##### ! ###+#### | | ## ## ##### ##### # # | | ## ^ ## + # | | +#### ############################### [ # | | #?#########?????????????????????????????# [ % # | | #???????????????????????????????????????# = # | | #???????????????????????????????????????# # | | ##???????????????????????????????????????######## | | #???????????????????????????????????????????????? | | #???????????????????????????????????????????????? | | #???????????????????????????????????????????????? | | #???????????????????????????????????????????????? | | #???????????????????????????????????????????????? | | ###?????????????????????????????????????????????? | | T#?????????????????????????????????????????????? | | ""#?????????????????????????????????????????????? | | ###?????????????????????????????????????????????? | | #???????????????????????????????????????????????? | | #???????????????????????????????????????????????? | | #?????????????##############????????????????????? | | #?????????????## # #######????????????????????? | | #####?????????###; =%%=@=##????????????????????? | | "" #??????????###=*%####%####################### | | " ###############+#####+####################### | | % % %[%* ! == | | * !* g* == [ " | | [!==!%!% !=! !% | | *% !=/=*|!= " !|%| | | == %*%=%[% *%!=% | | ############################################# | | #???????##################################### | | "###???????????????????????????????????????????? | | "#?????????????????????????????????????????????? | | """#?????????????????????????????????????????????? | | ####?????????????????????????????????????????????? | | ?????????????????????????????????????????????????? | | ?????????????????????????????????????????????????? | | | | | | | | | | | | | | | | | | | +----------------------------------------------------+ Best States ------------- Heat Dissipation 61 Energy Generation 18 Energy Capacity 310 Matter Stores 300 Matter Capacity 300 Sight Range 20 Terrain Scan Range 16 Terrain Scan Density 285 EM Shielding 2 Armor Coverage 675 Resistance: EX 50 Utility Shielding 33 Weapon Cycling 20 Evasion (%) 55 Targeting Accuracy 8 Recoil Reduction 8 Energy Filtering 30 Offensive Hacking 32 Defensive Hacking 10 Relay Coupler Types 2 Relay Coupler Value 58 Item Schematics ----------------- Lgt. Treads | -8/Materials | Scanalyzed Hacking Suite | -7/Factory | Scanalyzed Plasma Cannon | -7/Factory | Scanalyzed Enh. Nuclear Core | -7/Factory | Scanalyzed Dispersion Rifle | -6/Factory | Hacked Imp. Remote Datajack | -5/Factory | Scanalyzed Robot Schematics ------------------ B-48 Gladiator | -6/Factory | Hacked Fabricated ------------ B-48 Gladiator | x3 | -6/Factory Alien Tech Used ----------------- None Achievements -------------- My Command Is Your Wish Prolific Hacker Challenges ------------ None Game ------ Seed ChainSystemLink Manual? 0 Play Time 02:55:12 Cumulative 51.7 hours Start 2025.03.05 @ 23:46:03 End 2025.03.06 @ 20:53:01 Sessions 3 Manual Loads 0 Difficulty Rogue Special Mode None Game No. 60 Rogue 60 Adventurer 0 Explorer 0 Win Type - Total 0 Types 0/0/0/0/0/0/0/0/0 Lore% 32 Gallery% 41 Achievement% 32 Wizard Run 0 Options --------- Layout 0 ASCII 0 Keyboard 1 Movement Numpad Keybinds 0 Fullscreen 1 Font 18/SmallcapsGlow Map View 76x50 Zoom Use 0% Tactical HUD 1 Map Filters NONE Filters NONE Steam 1 RUN: 94609ad2-1117-4152-b083-39765ea9e1e4